Cogmind - Beta 16 @@@ ROGUE MODE // 2025.10.23 @ 01:29:15 // Winter2019/RPGLIKE Player: Rentaro Result: Smashed by cave-in Performance ------------- Evolutions (4) 2000 Regions Visited (4) 800 Robots Destroyed (84) 420 Value Destroyed (3092) 3092 Prototype IDs (10) 200 Alien Tech Used (0) 0 Bonus (1577) 1577 TOTAL SCORE: 8089 Bonus ------- High Alert Combat Kills 777 Registered with UFD 300 Met Optimus in HQ 500 Cogmind --------- Core Integrity 0/1000 Matter 229/300 Energy 35/160 System Corruption 3% Temperature Cool (0) Movement Flying (34) Location -6/Factory Parts ------- > --- POWER (1) -------- Light Nuclear Core > --- PROPULSION (3) --- Xenon Bombardment Thruster Xenon Bombardment Thruster Nuclear Pulse Thruster > --- UTILITY (6) ------ Structural Scanner Advanced Sensor Array Advanced Signal Interpreter Improved Reaction Control System EM Shield Improved Shield Generator > --- WEAPON (3) ------- Long-range Missile Launcher Katana Chainsword > --- INVENTORY (3) ---- Katana Peak State ------------ > --- POWER ------------ Light Nuclear Core > --- PROPULSION ------- Xenon Bombardment Thruster Xenon Bombardment Thruster Nuclear Pulse Thruster > --- UTILITY ---------- Structural Scanner Advanced Sensor Array Advanced Signal Interpreter Improved Reaction Control System EM Shield Improved Shield Generator > --- WEAPON ----------- Long-range Missile Launcher Katana Chainsword > --- INVENTORY -------- Katana [Rating: 53] Favorites ----------- Power Light Ion Engine Engine Light Ion Engine Power Core Light Nuclear Core Propulsion Flight Unit Leg Aluminum Leg Flight Unit Flight Unit Utility Structural Scanner Device Structural Scanner Processor Advanced Signal Interpreter Weapon Light Assault Rifle Energy Gun Medium Laser Ballistic Gun Light Assault Rifle Ballistic Cannon Light Cannon Launcher Long-range Missile Launcher Impact Weapon Hammer Slashing Weapon Katana Build | -11 -10 -10 -9 -6 ------- Run | Yrd Mat Sub Scr Fac Slots Evolved 9 | 4 1 . . 4 Power . | . . . . . Propulsion 2 | 1 1 . . . Utility 5 | 1 . . . 4 Weapon 2 | 2 . . . . Parts Attached 34 | 7 7 . 5 15 Power 3 | 1 . . 1 1 Engine 2 | 1 . . 1 . Core 1 | . . . . 1 Reactor . | . . . . . Propulsion 11 | 2 3 . 1 5 Treads . | . . . . . Leg 2 | 2 . . . . Wheel . | . . . . . Hover . | . . . . . Flight 9 | . 3 . 1 5 Utility 9 | 1 1 . . 7 Device 7 | 1 1 . . 5 Storage . | . . . . . Processor 2 | . . . . 2 Hackware . | . . . . . Protection . | . . . . . Artifact . | . . . . . Weapon 11 | 3 3 . 3 2 Energy Gun 1 | 1 . . . . Energy Cannon . | . . . . . Ballistic Gun 3 | 2 1 . . . Ballistic Cannon 1 | . 1 . . . Launcher 1 | . . . 1 . Special Weapon . | . . . . . Impact Weapon 1 | . 1 . . . Slashing Weapon 4 | . . . 2 2 Piercing Weapon . | . . . . . Special Melee Weapon . | . . . . . Unidentified Prototypes 2 | . . . 1 1 Parts Lost . | . . . . . Power . | . . . . . Propulsion . | . . . . . Utility . | . . . . . Weapon . | . . . . . Highest Loss Streak . | . . . . . To Critical Strikes . | . . . . . Average Backups . | . . 1 1 1 Power . | . . . . . Propulsion . | . . . . . Utility . | . . . . . Weapon . | . . 1 1 . Tool/Special . | . . . . . Unused Backups 3 | . . . 2 1 Power . | . . . . . Propulsion . | . . . . . Utility . | . . . . . Weapon 3 | . . . 2 1 Tool/Special . | . . . . . Average Slot Usage (%) 96 | . 94 100 92 99 Engine 6 | . 11 11 11 . Core 3 | . . . . 6 Leg 2 | . 6 . . . Flight 24 | . 20 33 33 24 Device 27 | . 22 22 22 34 Processor 3 | . . . . 7 Energy Gun 1 | . 3 . . . Ballistic Gun 14 | . 23 22 18 6 Launcher 3 | . . . 1 7 Impact Weapon 2 | . 4 11 1 . Slashing Weapon 5 | . . . 4 10 Peak Build Rating 53 | 7 9 9 14 53 Average Rating 25 | 4 8 9 9 45 On Entrance 6 | . 7 9 9 7 Avg Prop Armor Cover (%) 3 | . 3 . . . Naked Turns . | . . . . . Heaviest Build 27 | 9 11 9 15 27 Greatest Support 30 | 20 20 17 17 30 Greatest Overweight (x) 2 | . 2 . . . Average Overweight (x) . | . . . . . Largest Inventory Capacity 3 | . 3 3 3 3 Average Capacity 2 | . 1 3 3 3 Most Carried 3 | . 2 2 3 3 Average Carried 1 | . . 1 1 1 Final Capacity 3 | . 3 3 3 3 Final Carried 3 | . 2 1 3 1 Class Distribution -------------------- 38% | Mutant 36% | Hacker-Scout 18% | Gunner 6% | Scout Dominant Class ---------------- Mutant | -10/Materials Mutant | -10/Subcaves Mutant | -9/Scraptown Hacker-Scout | -6/Factory Resources | -11 -10 -10 -9 -6 ----------- Run | Yrd Mat Sub Scr Fac Matter Collected 2144 | 286 667 45 90 1056 Remotely 982 | 42 667 45 90 138 Salvage Created 1974 | 84 634 104 . 1152 Parts 134 | 2 48 3 . 81 Haulers Intercepted 4 | . 2 . . 2 Recyclers Shooed 1 | . 1 . . . Parts Field Recycled . | . . . . . Retrieved Matter . | . . . . . Parts Self-Destructed . | . . . . . Prevented . | . . . . . Parts Restored . | . . . . . Kills | -11 -10 -10 -9 -6 ------- Run | Yrd Mat Sub Scr Fac Combat Hostiles Destroyed 44 | . 14 2 . 28 Melee 9 | . 1 . . 8 Guns 14 | . 12 2 . . Cannons 1 | . 1 . . . AOE 20 | . . . . 20 Classes Destroyed 13 | 1 8 1 . 3 Worker 12 | . 3 . . 9 Builder 8 | . 3 . . 5 Tunneler 3 | . 1 . . 2 Hauler 4 | . 2 . . 2 Recycler 4 | 1 1 . . 2 Operator 2 | . 2 . . . Watcher 7 | . 3 . . 4 Swarmer 22 | . 3 . . 19 Grunt 14 | . 11 . . 3 Sentry 1 | . . . . 1 Hunter 1 | . . . . 1 Programmer 4 | . . . . 4 Subdweller 2 | . . 2 . . Best Kill Streak 10 | 1 4 2 . 10 Combat Bots Only 8 | . 4 2 . 8 Max Kills in Single Turn 6 | 1 1 1 . 6 Gunslinging . | . . . . . Exploded 3 | . . . . 3 Melee 1 | . 1 . . 1 Uniques/NPCs Destroyed . | . . . . . Combat | -11 -10 -10 -9 -6 -------- Run | Yrd Mat Sub Scr Fac Hostile Shots Fired 190 | . 64 41 2 83 Missed 74 | . 22 14 1 37 Hits 116 | . 42 27 1 46 Projectile 116 | . 42 27 1 46 Critical Strikes 8 | . 3 2 . 3 Damage Taken 1867 | . 523 463 12 869 Core 1513 | . 432 379 9 693 Absorbed by Shields 251 | . . . . 251 Redirected to Core 1181 | . 287 296 9 589 Ignored by Resistances 268 | . 19 96 . 153 Regen/Repaired (Parts) 75 | . . . . 75 Core Remaining (%) 77 | 100 . . 55 . Volleys Fired 262 | 4 179 19 . 60 Largest 3 | 2 3 2 . 2 Hottest 90 | 40 90 40 . 43 Shots Fired 484 | 8 377 38 . 61 Gun 406 | 8 358 38 . 2 Cannon 19 | . 19 . . . Launcher 59 | . . . . 59 Special . | . . . . . Kinetic 391 | 8 343 38 . 2 Thermal 34 | . 34 . . . Explosive 59 | . . . . 59 Electromagnetic . | . . . . . Robot Hit Streak 13 | 3 8 13 . 9 Robot Miss Streak 9 | 2 9 1 . 2 Penetration Max . | . . . . . Secondary Targets . | . . . . . Shots Hit Robots 218 | 5 118 34 . 61 Core Hits 122 | 2 44 7 . 69 Critical Kills 1 | . 1 . . . Critical Parts Destroyed 3 | . 3 . . . Critical Strikes 12 | . 5 . . 7 Burn 1 | . 1 . . . Smash 4 | . 4 . . . Sever 7 | . . . . 7 Melee Attacks 230 | . 51 19 . 160 Impact 70 | . 51 19 . . Slashing 160 | . . . . 160 Piercing . | . . . . . Sneak Attacks 11 | . 3 . . 8 Combat Hostiles . | . . . . . Follow-up Attacks 1 | . . . . 1 Damage Inflicted 8608 | 51 1500 320 . 6737 Guns 1493 | 51 1147 295 . . Cannons 38 | . 38 . . . Explosions 4738 | . 56 . . 4682 Melee 2245 | . 259 25 . 1961 Ramming 94 | . . . . 94 Kinetic 1354 | 51 1008 295 . . Thermal 1108 | . 177 . . 931 Explosive 3807 | . 56 . . 3751 Electromagnetic . | . . . . . Impact 284 | . 259 25 . . Slashing 1961 | . . . . 1961 Piercing . | . . . . . Highest Corruption 3 | . . . . 3 Average Corruption 2 | . . . . 2 Corruption Purged . | . . . . . Corruption Blocked . | . . . . . Effects 13 | . . . . 13 Message Errors 4 | . . . . 4 Matter Fused 5 | . . . . 5 Heat Flow Errors 2 | . . . . 2 Energy Discharges 1 | . . . . 1 Data Loss (minor) 1 | . . . . 1 Overload Shots . | . . . . . Overflow Damage 639 | . 165 . . 474 Projectiles . | . . . . . Explosions 392 | . 36 . . 356 Melee 247 | . 129 . . 118 Knockbacks 2 | . 2 . . . Impact 1 | . 1 . . . Kinetic 1 | . 1 . . . Secondary . | . . . . . Self-Inflicted Damage 201 | . 26 . . 175 Shots 4 | . 2 . . 2 Rammed . | . . . . . Targets Rammed . | . . . . . Kicked . | . . . . . Crushed . | . . . . . Highest Temperature 357 | . 294 . . 357 Average Temperature 55 | . 63 . . 43 Received Heat Transfer 339 | . 309 6 . 24 Siege Activations . | . . . . . Martial Activations . | . . . . . Shielding Activations . | . . . . . Robots Disrupted . | . . . . . Combat Hostiles . | . . . . . Robots Corrupted 4 | . 4 . . . Combat Hostiles . | . . . . . Parts Fried 3 | . 3 . . . Impact Corruptions 7 | . 7 . . . Robots Melted . | . . . . . Combat Hostiles . | . . . . . Parts Melted 1 | . 1 . . . Heat Transferred 1342 | . 592 . . 750 Parts Sabotaged . | . . . . . Parts Stolen . | . . . . . Parts Stripped . | . . . . . Power Chain Reactions . | . . . . . Alert | -11 -10 -10 -9 -6 ------- Run | Yrd Mat Sub Scr Fac Maximum Alert Level 5 | . 2 . . 5 Low Security (%) 23 | 100 45 . . 5 Level 1 8 | . 20 . . . Level 2 17 | . 33 . . 6 Level 3 10 | . . . . 18 Level 4 15 | . . . . 25 Level 5 24 | . . . . 42 High Security . | . . . . . Max Security . | . . . . . Peak Influence 2394 | 5 650 . . 2394 Initial . | . . . . . Average 981 | . 273 . . 1506 Influence Increases 4123 | 5 1124 . . 2994 Destroy 0b10 Robot/C 840 | . 280 . . 560 Destroy 0b10 Robot/NC 200 | 5 75 . . 120 Destroy Leader 212 | . 80 . . 132 Trap Triggered on 0b10 20 | . 20 . . . Successful Hack 107 | . 34 . . 73 Disable Machine 1860 | . 495 . . 1365 Destroy Structure 674 | . 125 . . 549 Partial Spotted 30 | . . . . 30 Lose Combat Pursuer 180 | . 15 . . 165 Influence Decreases 1778 | 5 480 460 184 649 Entered New Map 494 | . . 310 184 . Time Decay 1284 | 5 480 150 . 649 Squads Dispatched 33 | . 4 . . 29 Investigation 5 | . 2 . . 3 Extermination 6 | . . . . 6 Reinforcement 6 | . 2 . . 4 Assault 9 | . . . . 9 Garrison 7 | . . . . 7 Intercept . | . . . . . Searches Triggered . | . . . . . Construction Impeded 2 | . . . . 2 Haulers Reinforced 1 | . . . . 1 Active Scanning Responses . | . . . . . Cargo Convoy Interrupts . | . . . . . Stealth | -11 -10 -10 -9 -6 --------- Run | Yrd Mat Sub Scr Fac Distress Signals 4 | . 3 . . 1 Communications Jammed . | . . . . . Distress Signals . | . . . . . Times Spotted 60 | . 27 3 1 29 Peak Tracking Total 4 | . 4 2 1 4 Tactical Retreats 11 | . 1 1 . 9 Traps | -11 -10 -10 -9 -6 ------- Run | Yrd Mat Sub Scr Fac Traps Triggered 2 | . 1 . . 1 Indirectly . | . . . . . Trap Hack Attempts . | . . . . . Triggered . | . . . . . Disarmed . | . . . . . Reprogrammed 11 | . 11 . . . Reused 2 | . 2 . . . Traps Extracted . | . . . . . Installed . | . . . . . Triggered 2 | . 2 . . . Machines | -11 -10 -10 -9 -6 ---------- Run | Yrd Mat Sub Scr Fac Machines Disabled 125 | . 34 . . 91 Max in Single Turn 12 | . 3 . . 12 Garrison Access 1 | . . . . 1 Machines Repaired . | . . . . . Machines Dismantled . | . . . . . Machines Sabotaged . | . . . . . Overloaded Fab Kills . | . . . . . Hacking | -11 -10 -10 -9 -6 --------- Run | Yrd Mat Sub Scr Fac Machines Accessed 33 | . 7 . 11 15 Terminals 13 | . 6 . . 7 Fabricators . | . . . . . Repair Stations 1 | . . . . 1 Recycling Units 4 | . 1 . . 3 Scanalyzers 2 | . . . . 2 Garrison Access 2 | . . . . 2 Total Hacks 135 | . 29 . 68 38 Successful 106 | . 18 . 68 20 Failed 29 | . 11 . . 18 Catastrophic 5 | . 3 . . 2 Database Lockouts . | . . . . . Manual 39 | . 15 . . 24 Terminals 49 | . 27 . . 22 Fabricators . | . . . . . Repair Stations 3 | . . . . 3 Recycling Units 5 | . 2 . . 3 Scanalyzers 7 | . . . . 7 Garrison Access 3 | . . . . 3 Terminal Hacks 81 | . 8 . 68 5 Record 59 | . . . 59 . Robot Analysis 8 | . . . 7 1 Prototype ID Bank 1 | . . . . 1 Open Door 1 | . . . 1 . Branch Access Points 1 | . . . . 1 Terminal Index 1 | . . . . 1 Recycling Unit Index 1 | . . . . 1 Locate Traps 4 | . 4 . . . Reprogram Traps 2 | . 2 . . . Registered Components 1 | . 1 . . . Zone Layout 1 | . 1 . . . Proto ID Catalog 1 | . . . 1 . Fabricator Hacks . | . . . . . Repair Station Hacks 2 | . . . . 2 Scan Component 1 | . . . . 1 Repair 1 | . . . . 1 Recycling Unit Hacks 2 | . 2 . . . Retrieve Components 2 | . 2 . . . Scanalyzer 2 | . . . . 2 Retrieve Study 2 | . . . . 2 Garrison Access Hacks 1 | . . . . 1 Seal Access 1 | . . . . 1 Unauthorized Hacks 18 | . 8 . . 10 Terminals 15 | . 8 . . 7 Assimilate 3 | . 2 . . 1 Botnet 12 | . 6 . . 6 Fabricators . | . . . . . Repair Stations . | . . . . . Recycling Units 3 | . . . . 3 Fedlink 3 | . . . . 3 Scanalyzers . | . . . . . Garrison Access . | . . . . . Data Cores Recovered . | . . . . . Used . | . . . . . Hacking Detections 15 | . 6 . . 9 Full Trace Events 6 | . 6 . . . Feedback Events . | . . . . . Feedback Blocked . | . . . . . Robot Schematics Acquired . | . . . . . Robots Built . | . . . . . Authchips . | . . . . . Time . | . . . . . Total Robot Build Rating . | . . . . . Part Schematics Acquired . | . . . . . Parts Built . | . . . . . Authchips . | . . . . . Time . | . . . . . Total Part Build Rating . | . . . . . Part Studies Acquired 2 | . . . . 2 Parts Repaired 1 | . . . . 1 Time 25 | . . . . 25 Parts Recycled . | . . . . . Recycled Matter . | . . . . . Retrieved Matter . | . . . . . Retrieved Components . | . . . . . Parts Scanalyzed . | . . . . . Part Schematics Acquired . | . . . . . Parts Damaged . | . . . . . Bothacking | -11 -10 -10 -9 -6 ------------ Run | Yrd Mat Sub Scr Fac Used RIF Installer . | . . . . . Robots Hacked . | . . . . . Non-combat . | . . . . . Combat . | . . . . . Robot Hacks Applied . | . . . . . Relay Couplers Released . | . . . . . Fabnet Peak Effective % . | . . . . . Robots Rewired . | . . . . . Allies Hacked . | . . . . . Hacks Repelled . | . . . . . Allies | -11 -10 -10 -9 -6 -------- Run | Yrd Mat Sub Scr Fac Total Allies . | . . . . . Largest Group . | . . . . . Highest-Rated Group . | . . . . . Highest-Rated Ally . | . . . . . Total Orders . | . . . . . Ally Attacks . | . . . . . Total Damage . | . . . . . Kills . | . . . . . Allies Corrupted . | . . . . . Allies Melted . | . . . . . Intel | -11 -10 -10 -9 -6 ------- Run | Yrd Mat Sub Scr Fac Active Infowar (turns) 4998 | . 1534 301 755 2408 Sensors 2375 | . . . . 2375 Structural 4998 | . 1534 301 755 2408 Robot Analysis Total 8 | . . . 7 1 Derelict Logs Recovered 2 | . . 2 . . Drone Launches . | . . . . . Drone Recoveries . | . . . . . Exploration | -11 -10 -10 -9 -6 ------------- Run | Yrd Mat Sub Scr Fac Turns Passed 5211 | 92 1656 301 755 2407 Spaces Moved 7572 | 61 1600 361 2031 3519 Core 6 | 6 . . . . Treads . | . . . . . Legs 330 | 55 275 . . . Wheels . | . . . . . Hover . | . . . . . Flight 7236 | . 1325 361 2031 3519 Fastest Speed 34 | 50 34 34 34 34 Average Speed 38 | 113 50 34 34 34 Slowest Speed 200 | 120 200 34 34 34 Overloaded Moves . | . . . . . Propulsion Burnouts . | . . . . . Robots Hopped 23 | . 5 . 8 10 Potential Cave-ins 51 | . . . . 51 Cave-ins Triggered 2 | . . . . 2 Exploration Rate (%) 52 | 5 100 19 96 43 Regions Visited 4 Branch Regions 2 Pre-discovered Areas 3 | . . 2 . 1 Known Exits Taken . | . . . . . Unknown Exits Taken 4 | 1 1 1 1 . Scrap Searched 7 | . . . 7 . Spaces Dug 281 | . 12 2 . 267 Terrain Destroyed 921 | . 130 2 . 789 Melee 72 | . 12 2 . 58 Projectile . | . . . . . AOE 848 | . 118 . . 730 Terrain Rammed 1 | . . . . 1 Walls Destroyed 1 | . . . . 1 Machines Disabled . | . . . . . Actions | -11 -10 -10 -9 -6 --------- Run | Yrd Mat Sub Scr Fac Total 9100 | 73 2054 475 2090 4408 Wait 943 | 2 182 70 43 646 Move 7526 | 60 1590 360 2017 3499 Hop 18 | . 4 . 5 9 Pick Up 13 | . 4 1 5 3 Fast Attach 21 | 7 6 . 2 6 Attach 7 | . . . 3 4 Detach 2 | . . . 2 . Swap 19 | . 5 . 4 10 Drop 28 | . 7 2 9 10 Fire 262 | 4 179 19 . 60 Melee 227 | . 51 19 . 157 Ram 1 | . . . . 1 Kick . | . . . . . Crush . | . . . . . Escape Stasis 1 | . . . . 1 Rewire . | . . . . . Trap . | . . . . . Miscellaneous 32 | . 26 4 . 2 Route ------- -11/Scrapyard -10/Materials (discovered 5 exits: [*Mat x3] / [*Min] / [*Sub]) -10/Subcaves -9/Scraptown (discovered 2 exits: *Fac x2) -6/Factory (discovered 3 exits: *Fac / *Low x2) History --------- Turn | Location | Event 1 | -11/Scrapyard | Upgraded with Propulsion slot (x1) 1 | -11/Scrapyard | Upgraded with Utility slot (x1) 1 | -11/Scrapyard | Upgraded with Weapon slot (x2) 11 | -11/Scrapyard | Discovered new exit (range 16) 93 | -11/Scrapyard | Entered Materials 312 | -10/Materials | Build established: Gunner 387 | -10/Materials | Discovered new exit (range 10) 453 | -10/Materials | Discovered new exit (range 13) 715 | -10/Materials | Discovered new exit (range 14) 752 | -10/Materials | Reached level 2 755 | -10/Materials | Upgraded with Propulsion slot (x1) 810 | -10/Materials | Discovered new exit (range 16) 1051 | -10/Materials | Discovered new exit (range 6) 1152 | -10/Materials | Reached level 3 1323 | -10/Materials | Build established: Mutant 1749 | -10/Materials | Entered Subcaves 1750 | -10/Subcaves | Approached by a straggling Scientist 1751 | -10/Subcaves | Reached level 4 1762 | -10/Subcaves | Ambushed by Subdwellers from Twisted Machinery 1860 | -10/Subcaves | Learned Materials stockpile data 1877 | -10/Subcaves | A swath of the cavern ceiling suddenly collapsed 1907 | -10/Subcaves | Learned location of Zion (-7) 1907 | -10/Subcaves | Met a Zionite searching for "candidates" 1910 | -10/Subcaves | Learned location of Storage (-9) 2050 | -10/Subcaves | Entered Scraptown 2143 | -9/Scraptown | Heard Great Nut preacher, LISTEN AND RECITE! 2161 | -9/Scraptown | Visited UFD Registry 2161 | -9/Scraptown | Registered with UFD as "Rougheater" 2161 | -9/Scraptown | Reached level 5 2168 | -9/Scraptown | Visited Awakened 2181 | -9/Scraptown | Visited IN-MT5's Study 2191 | -9/Scraptown | Visited The Evicted 2213 | -9/Scraptown | Visited Cyclists 2220 | -9/Scraptown | Entered Cyclist Reading Room 2334 | -9/Scraptown | Discovered new exit (range 5) 2417 | -9/Scraptown | Visited Junk Repository 2425 | -9/Scraptown | Visited Fellowship of the Rings 2466 | -9/Scraptown | Visited Science Guys 2485 | -9/Scraptown | Visited Junk Repository 2494 | -9/Scraptown | Visited Abandonware Association 2501 | -9/Scraptown | Learned abandonware demo "POISON.EXE" 2532 | -9/Scraptown | Discovered new exit (range 5) 2545 | -9/Scraptown | Visited Science Testing Area 2551 | -9/Scraptown | Visited Sword Containment 2576 | -9/Scraptown | Visited Scrapoid Pod Storage 2585 | -9/Scraptown | Visited Observation Area 2598 | -9/Scraptown | Visited DA-N13 Charitable Foundation 2600 | -9/Scraptown | Found DCF Scrap (29 items) 2618 | -9/Scraptown | Visited Analyses Database 2626 | -9/Scraptown | Visited Curators Association 2728 | -9/Scraptown | Met Optimus 2728 | -9/Scraptown | Accepted into 0bPrime 2801 | -9/Scraptown | Civil war broke out across Scraptown 2805 | -9/Scraptown | Entered Factory 2807 | -6/Factory | Reached level 6 2807 | -6/Factory | Upgraded with Utility slot (x2) 2877 | -6/Factory | Discovered new exit (range 5) 2945 | -6/Factory | Reached level 7 2984 | -6/Factory | Reached level 8 2989 | -6/Factory | Upgraded with Utility slot (x1) 3155 | -6/Factory | First assault squad dispatched 3194 | -6/Factory | Loaded intel: 8 recycling unit locations 3279 | -6/Factory | Build established: Scout 3325 | -6/Factory | Reached level 9 3455 | -6/Factory | Core integrity fell below 50% 3515 | -6/Factory | Identified exit to Lower Caves 3629 | -6/Factory | Build established: Hacker-Scout 3675 | -6/Factory | Reached level 10 3855 | -6/Factory | Garrison activated, responded to threat 4149 | -6/Factory | Reached level 11 4218 | -6/Factory | Destroyed 8 combat bots 4342 | -6/Factory | Reached level 12 4431 | -6/Factory | Reached level 13 4434 | -6/Factory | Upgraded with Utility slot (x1) 4463 | -6/Factory | Discovered new exit (range 5) 4473 | -6/Factory | Core integrity fell below 20% 4491 | -6/Factory | Identified exit to Factory 4627 | -6/Factory | Repaired Lrn. Missile Launcher 4680 | -6/Factory | Learned location of Protoforge (-2) 5175 | -6/Factory | Crushed by falling debris 5213 | -6/Factory | Crushed by falling debris 5213 | -6/Factory | Smashed by cave-in Last Messages --------------- 04810_ Acquired 112 matter. 04817_ ,|ILL,5S9VQ RN>40TGKLTUR1O8M &=Y06QB 04962_ System corrupted: Heat flow error (+281). 04996_ System corrupted: Matter fused (-10). 05050_ System corrupted: Matter fused (-6). 05103_ ALERT: Security rotation in progress. 05116_ System corrupted: Heat flow error (+115). 05172_ System corrupted: Matter fused (-8). 05175_ The unstable cave ceiling collapses. 05175_ Crushed by falling debris. 05202_ System corrupted: Matter fused (-10). 05213_ The unstable cave ceiling collapses. 05213_ Crushed by falling debris. Map ----- +----------------------------------------------------+ | """" ]# k##???????????????? k | | """" # ##???????????????? | | "" """" + ##??################ | | " """ # ##??################ | | "F """" # ##??## ## | | "" k """" # ##??## ## | | + ##??## ## | | ###"######### ##??## ## | | #### # ##??## ## | | ?### """"" # ##??## # "" ## | | ??## ""T"" # ##??## # [###"# | | ??## # ##??## # p ! | | ??## + ##??## =+ T | | ??## """ [ # ##??## # C | | ??## """ # ##??## # #####w | | ??## """ # ###### # ###### | | ??## #^ ^##############+###"############# R | | ??##########" # ## [ ## | | ??########### R#"" ## ##C | | ??????????### #"" ## """""" ## | | ?????######## #G ## """"" # | | ?????######## #"" ## ] """""" # | | ?????## # #"" ## """""" + | | ????### # # ## # | | ####### ] # #####+############ """"" # | | ######" # # # ##@# # ## # """""" # k | | # # # # #### ???## """""" # | | # # #### ## ###???## """""" # | | # " # #### # ##???## # | | # "" # # ## # ###################### | | # """ # #### ######################## | | ! # """ # #### ## ##?????????## | | # """ + # # ## ##?????????## | | # # # # ## "" ##?????????## | | #+########### #### ## "" h##????????? | | # """ ##?????????? | | # u """ ##?????????? | | ^^ # ""h##?????????? | | ^ + ##????????? | | k ############?????????##### | | ################### C ############????????? # | | ###### ##???????????????????????? | | """" """"""" ##??## ###??????????????????????? | | """" """"""" ##??## ###??????????????????????? | | """ """"""" ##?### T##??????????????????????? | | """" """""" ######% ###?????????????????????? | | ######C ####?????????????????????? | | # # # ##?????????????????????? | | ################### # ##?????????????????????? | | # ##?????????????????????? | +----------------------------------------------------+ Best States ------------- Heat Dissipation 37 Energy Generation 24 Energy Capacity 160 Matter Stores 300 Matter Capacity 300 Sight Range 19 Robot Scan Range 40 Terrain Scan Density 10 Resistance: KI 20 Resistance: TH 15 Resistance: EX 5 Resistance: EM 25 Evasion (%) 73 Offensive Hacking 10 Defensive Hacking 10 Item Schematics ----------------- None Robot Schematics ------------------ None Fabricated ------------ Nothing Repaired ---------- Lrn. Missile Launcher | 16% | -6/Factory Studied --------- Xenon Bombardment Thruster | -6/Factory | Hacked Katana | -6/Factory | Hacked Alien Tech Used ----------------- None Achievements -------------- Bob, First Of His Name Heavy Suspicion It Was An Accident, I Swear Item+ Link The Feds Resistances Are Futile This Is My Hole Throw Away The Key Uncivil War Challenges ------------ None RPGLIKE | -11 -10 -10 -9 -6 --------- Run | Yrd Mat Sub Scr Fac Levels Raised 12 | . 2 1 1 8 XP Earned 21788 | 3000 4449 1000 900 12439 XP Spent 21000 | 3000 2955 1505 . 13540 Upgrades 59 | 7 12 4 . 36 Propulsion Slot 2 | 1 1 . . . Utility Slot 5 | 1 . . . 4 Weapon Slot 2 | 2 . . . . Core Integrity 8 | . 3 1 . 4 Heat Dissipation 2 | . 1 . . 1 Energy Generation 2 | . . . . 2 Mass Support 2 | . 1 . . 1 Inventory Capacity 3 | . 3 . . . Sight Range 3 | . 1 . . 2 Sensor Range 12 | . . . . 12 Melee Accuracy 4 | . . . . 4 Hack Attack % 2 | . . . . 2 Hack Defense % 2 | . . . . 2 KI Resistance % 4 | 2 . 1 . 1 TH Resistance % 3 | . 1 2 . . EX Resistance % 1 | . 1 . . . KI Damage % 1 | 1 . . . . EX Damage % 1 | . . . . 1 Protomatter Created 364 | . 290 . . 74 Integrity Restored 586 | . 517 39 . 30 Core 495 | . 428 37 . 30 Parts 91 | . 89 2 . . Protomatter Decayed 196 | . 140 . . 56 Game ------ Seed DefenseMetamassAutogun Manual? 0 Play Time 02:04:21 Cumulative 70.7 hours Start 2025.10.22 @ 22:53:29 End 2025.10.23 @ 01:29:15 Sessions 1 Manual Loads 0 Difficulty Rogue Special Mode Winter2019/RPGLIKE Game No. 40 Rogue 40 Adventurer 0 Explorer 0 Win Type - Total 1 Types 0/0/0/1/0/0/0/0/0/0 Lore% 37 Gallery% 32 Achievement% 25 Wizard Run 0 Options --------- Layout 2 ASCII 0 Keyboard 0 Movement Mouse Keybinds 1 Fullscreen 1 Font 24/Terminus Map View 50x44 Zoom Use 0% Tactical HUD 1 Map Filters NONE Filters NONE Steam 1 RUN: a04b2b70-1a0b-40a4-ad44-f32c0c56942a